bitfinex/quotes_SOLUSD_20250901
["timestamp","ask_amount","ask_price","bid_price","bid_amount"]
[1756764108934,0.72,195.17,195.13,44.32]
[1756764109128,0.72,195.17,195.13,53.34799379]
[1756764111131,5.84376034,195.17,195.13,53.34799379]
[1756764111653,0.72,195.17,195.13,53.34799379]
[1756764112051,0.72,195.17,195.13,50.49941924]
[1756764112575,5.1237475,195.17,195.13,44.44]
[1756764112748,6.05941924,195.15,195.13,0.12]
[1756764113149,6.77941924,195.15,195.13,0.12]
[1756764113538,11.18383775,195.15,195.13,0.12]
[1756764113765,0.72,195.14,195.13,0.12]
[1756764113969,0.03,195.18,195.14,0.7]
[1756764114141,0.03,195.18,195.15,6.05941924]
[1756764114457,0.75,195.18,195.14,6.05941924]
[1756764114652,5.87355937,195.18,195.13,50.33941924]
[1756764114832,5.87355937,195.18,195.13,109.33941924]
[1756764115456,0.03,195.18,195.13,109.33941924]
[1756764115642,0.03,195.18,195.15,5.12426338]
[1756764116153,0.03,195.18,195.15,11.18368262]
[1756764116351,0.03,195.18,195.17,6.05941924]
[1756764116540,0.03,195.18,195.17,19.65501325]
[1756764116741,0.03,195.18,195.17,20.35501325]
[1756764117438,0.03,195.18,195.17,25.47875152]
[1756764118946,0.03,195.18,195.17,19.41933228]
[1756764119174,0.03,195.18,195.17,24.77875152]
[1756764121462,0.03,195.18,195.17,6.05941924]
[1756764121668,0.75,195.18,195.13,0.12]
[1756764121868,0.72,195.17,195.14,50.53941924]
[1756764122682,0.03,195.18,195.16,6.05941924]
[1756764122860,0.03,195.2,195.19,45.65501325]
[1756764123354,0.03,195.2,195.19,46.35501325]
[1756764123548,0.03,195.2,195.19,44.71880728]
[1756764123782,0.03,195.2,195.19,95.17822652]
[1756764124094,0.75,195.2,195.17,44.38]
[1756764124391,0.72,195.19,195.17,44.38]
[1756764124557,0.03,195.2,195.17,44.38]
[1756764124756,0.72,195.18,195.17,44.38]
[1756764125264,0.72,195.18,195.16,44.5]
[1756764125466,0.66,195.17,195.14,44.48]
[1756764125668,0.66,195.16,195.13,0.12]
[1756764125867,6.71941924,195.16,195.13,0.12]
[1756764126488,0.66,195.15,195.13,0.12]
[1756764126784,6.05941924,195.16,195.13,0.12]
[1756764127086,0.66,195.14,195.13,0.12]
[1756764127691,5.78452598,195.14,195.13,0.12]
[1756764129800,26.0,195.12,195.11,0.12]
[1756764129983,32.05941924,195.12,195.09,0.12]
[1756764130185,26.66,195.11,195.09,0.12]
[1756764130394,6.05941924,195.1,195.09,0.12]
[1756764130780,6.71941924,195.1,195.09,0.12]
[1756764131173,26.0,195.12,195.09,0.12]
[1756764131462,6.05941924,195.13,195.09,0.12]
[1756764131664,0.66,195.12,195.09,0.12]
[1756764132105,6.05941924,195.13,195.09,0.12]
[1756764132271,0.66,195.11,195.09,0.12]
[1756764132885,6.71941924,195.1,195.09,0.12]
[1756764133099,26.0,195.08,195.07,0.12]
[1756764133261,32.05941924,195.08,195.07,0.12]
[1756764133467,37.84552135,195.08,195.07,0.12]
[1756764133669,37.84552135,195.08,195.05,0.12]
[1756764133866,26.0,195.06,195.04,0.12]
[1756764134091,6.05941924,195.05,195.04,0.12]
[1756764134296,6.71941924,195.05,195.04,0.12]
[1756764134676,68.32288713,195.05,195.04,1e-08]
[1756764134883,13.59559401,195.04,195.02,1e-08]
[1756764135082,6.05941924,195.03,195.02,1e-08]
[1756764135275,6.71941924,195.03,195.02,1e-08]
[1756764135484,11.84683553,195.03,195.02,1e-08]
[1756764135998,0.66,195.07,195.02,1e-08]
[1756764136174,5.12583935,195.09,195.02,0.66000001]
[1756764136175,32.05941924,195.06,195.02,0.66000001]
[1756764136373,6.05941924,195.05,195.02,1e-08]
[1756764136773,6.71941924,195.05,195.02,1e-08]
[1756764137001,6.05941924,195.03,195.02,1e-08]
[1756764137200,6.05941924,195.05,195.02,1e-08]
[1756764137500,6.05941924,195.06,195.02,1e-08]
[1756764137702,6.05941924,195.05,195.02,1e-08]
[1756764138488,6.71941924,195.04,195.02,1e-08]
[1756764138698,6.05941924,195.03,195.02,1e-08]
[1756764138873,0.66,195.03,195.02,1e-08]
[1756764139076,6.71941924,195.03,195.02,1e-08]
[1756764139691,26.66,195.03,195.02,1e-08]
[1756764139878,32.71941924,195.03,195.02,1e-08]
[1756764140603,20.06342581,195.02,195.0,0.12]
[1756764140794,20.06342581,195.02,194.97,0.2]
[1756764140795,26.0,194.98,194.97,0.2]
[1756764141103,32.05941924,194.98,194.97,0.2]
[1756764141284,32.71941924,194.98,194.97,0.2]
[1756764141491,91.47501325,194.98,194.97,0.2]
[1756764141821,96.6037444,194.98,194.97,0.2]
[1756764142307,0.66,194.98,194.97,0.2]
[1756764142606,6.71941924,194.98,194.97,0.2]
[1756764142810,6.38717466,195.02,194.97,0.86]
[1756764142979,59.69559401,195.07,194.98,0.66]
[1756764143174,6.05941924,195.03,194.98,0.66]
[1756764143378,45.44,195.07,194.99,0.66]
[1756764143691,6.05941924,195.0,194.97,0.2]
[1756764143888,6.05941924,194.99,194.97,0.2]
[1756764144192,6.05941924,195.0,194.97,0.2]
[1756764144396,6.05941924,194.99,194.97,0.2]
[1756764144781,6.05941924,194.98,194.97,0.2]
[1756764144982,0.66,195.02,194.97,0.2]
[1756764145283,6.05941924,194.99,194.97,0.2]
[1756764145774,6.05941924,194.98,194.97,0.2]
[1756764145981,26.66,194.98,194.97,0.2]
[1756764146190,35.7077305,194.98,194.97,0.2]
[1756764147679,60.47646165,194.98,194.97,0.2]
[1756764147906,65.02432516,194.98,194.97,0.2]
[1756764148219,13.59559401,194.95,194.93,0.12]
[1756764148416,13.59559401,194.93,194.91,0.2]
[1756764148723,6.38717466,194.92,194.83,5.13267334]
[1756764148880,9.0477305,194.93,194.88,0.66]
[1756764149081,9.0477305,194.93,194.89,0.66]
[1756764149297,9.0477305,194.93,194.9,0.66]
[1756764149926,9.0477305,194.92,194.9,0.66]
[1756764150613,31.12960317,194.95,194.87,0.66]
[1756764150614,9.0477305,194.91,194.87,0.66]
[1756764151116,9.0477305,194.91,194.88,0.66]
[1756764151293,9.0477305,194.9,194.86,5.13173594]
[1756764151910,9.0477305,194.9,194.87,0.66]
[1756764152109,26.0,194.92,194.88,0.66]
[1756764152412,26.0,194.92,194.86,5.13173594]
[1756764152613,9.0477305,194.9,194.86,5.13173594]
[1756764152908,9.0477305,194.9,194.87,0.66]
[1756764153312,9.0477305,194.9,194.84,0.12]
[1756764153612,26.0,194.92,194.85,0.66]
[1756764153783,26.0,194.91,194.85,0.66]
[1756764153983,9.0477305,194.89,194.85,0.66]
[1756764154211,26.0,194.91,194.85,0.66]
[1756764154410,9.0477305,194.89,194.84,5.25235498]
[1756764154614,9.0477305,194.89,194.85,0.66]
[1756764155707,9.0477305,194.89,194.85,5.13211787]
[1756764156007,9.0477305,194.9,194.86,0.7]
[1756764156739,26.0,194.91,194.86,0.7]
[1756764156920,9.0477305,194.9,194.86,0.7]
[1756764157117,9.0477305,194.89,194.84,0.82]
[1756764157328,9.0477305,194.89,194.85,0.7]
[1756764157722,9.0477305,194.89,194.85,5.83201371]
[1756764157918,0.67,195.02,194.87,13.59559401]
[1756764158238,9.0477305,194.95,194.88,9.7477305]
[1756764158536,9.0477305,194.95,194.89,9.7477305]
[1756764158840,9.0477305,194.95,194.87,13.59559401]
[1756764158841,9.0477305,194.95,194.9,0.7]
[1756764159013,9.0477305,194.95,194.91,0.7]
[1756764159409,9.0477305,194.94,194.91,0.7]
[1756764159734,9.0477305,194.92,194.87,5.13162621]
[1756764160245,26.0,194.91,194.84,14.29994174]
[1756764160550,9.0477305,194.9,194.85,0.7]
[1756764160738,9.0477305,194.9,194.84,5.25221124]
[1756764160739,9.0477305,194.89,194.84,5.25221124]
[1756764160902,9.0477305,194.89,194.84,5.95221124]
[1756764161532,9.0477305,194.9,194.85,0.7]
[1756764162050,26.0,194.91,194.84,14.29994174]
[1756764162345,9.0477305,194.96,194.9,9.0477305]
[1756764162641,9.0477305,194.94,194.89,0.7]
[1756764162939,9.0477305,194.94,194.9,0.7]
[1756764163143,9.0477305,194.95,194.9,0.7]
[1756764163330,9.0477305,194.94,194.9,0.7]
[1756764163521,9.0477305,194.93,194.87,0.7]
[1756764163721,9.0477305,194.93,194.87,9.7477305]
[1756764164148,9.0477305,194.93,194.88,5.13136288]
[1756764164323,9.0477305,194.93,194.89,0.7]
[1756764165145,9.0477305,194.94,194.88,5.13136288]
[1756764165442,9.0477305,194.94,194.89,0.7]
[1756764166246,9.0477305,194.94,194.9,0.7]
[1756764166546,9.0477305,194.96,194.9,9.7477305]
[1756764166749,0.03,194.93,194.9,0.7]
[1756764166925,0.03,194.93,194.88,18.6597701]
[1756764167132,9.0477305,194.92,194.88,5.13136288]
[1756764167846,0.03,194.93,194.89,9.7477305]
[1756764168037,0.03,194.93,194.89,0.7]
[1756764168515,6.10369841,194.93,194.89,5.83109959]
[1756764168712,6.10369841,194.93,194.89,5.13109959]
[1756764169138,0.03,194.93,194.9,0.7]
[1756764169341,0.03,194.93,194.92,6.07369841]
[1756764169953,0.03,194.93,194.92,0.7]
[1756764170333,0.03,194.93,194.92,5.83030987]
[1756764171731,0.03,194.93,194.92,11.90400828]
[1756764171953,0.03,194.93,194.92,5.83030987]
[1756764173223,0.03,194.93,194.91,6.07369841]
[1756764173224,0.03,194.93,194.9,13.59559401]
[1756764173438,0.03,194.93,194.91,0.7]
[1756764174331,0.03,194.93,194.92,5.13030987]
[1756764174725,0.03,194.93,194.92,5.83030987]
[1756764176154,0.7,194.93,194.82,0.12]
[1756764176356,0.03,194.93,194.9,6.07369841]
[1756764176535,0.03,194.93,194.92,19.66929242]
[1756764176740,1e-08,194.93,194.92,67.00929242]
[1756764176961,1e-08,194.93,194.92,60.93559401]
[1756764177262,1e-08,194.95,194.92,76.35559401]
[1756764177488,3.36246169,195.07,195.03,13.59559401]
[1756764177760,0.7,195.1,195.02,26.0]
[1756764177761,0.03,195.1,195.09,39.59559401]
[1756764177954,0.03,195.1,195.07,0.51263648]
[1756764178135,6.10369841,195.1,195.05,5.12687277]
[1756764178333,0.03,195.1,195.07,32.07369841]
[1756764178532,6.07369841,195.08,195.0,0.7]
[1756764178766,0.03,195.1,195.06,6.07369841]
[1756764178961,0.03,195.1,195.06,6.77369841]
[1756764179269,0.03,195.1,195.09,45.66929242]
[1756764179578,0.03,195.1,195.06,13.59559401]
[1756764179757,6.10369841,195.1,195.04,105.74]
[1756764179956,0.03,195.1,195.08,6.07369841]
[1756764180144,0.03,195.1,195.09,67.60187635]
[1756764180145,1e-08,195.1,195.09,67.60187635]
[1756764180349,0.03,195.18,195.12,39.59559401]
[1756764180583,6.10369841,195.18,195.12,26.0]
[1756764180750,6.07369841,195.16,195.11,13.59559401]
[1756764180950,0.03,195.18,195.11,13.59559401]
[1756764180951,0.03,195.18,195.12,7.28620353]
[1756764181146,6.10369841,195.18,195.12,46.7]
[1756764181378,6.07369841,195.17,195.07,0.51263648]
[1756764181546,6.07369841,195.12,195.07,0.7]
[1756764181750,0.03,195.18,195.11,6.07369841]
[1756764181962,0.03,195.18,195.12,20.36929242]
[1756764182277,6.07369841,195.17,195.11,6.07369841]
[1756764182458,0.67,195.17,195.1,46.68]
[1756764182660,0.03,195.18,195.12,19.66929242]
[1756764182860,0.03,195.18,195.08,60.27559401]
[1756764182861,6.07369841,195.14,195.08,60.27559401]
[1756764183083,0.03,195.18,195.12,19.66929242]
[1756764183452,0.03,195.18,195.12,14.29559401]
[1756764183655,0.03,195.18,195.12,67.06929242]
[1756764183954,0.03,195.18,195.12,73.14299083]
[1756764184264,0.03,195.18,195.12,98.19434367]
[1756764184649,0.03,195.18,195.12,77.80505125]
[1756764184650,6.77369841,195.18,195.12,77.80505125]
[1756764184873,6.74369841,195.15,195.08,5.82606241]
[1756764185084,6.07369841,195.14,195.08,57.87976082]
[1756764185281,0.03,195.15,195.11,26.0]
[1756764185581,0.03,195.15,195.1,19.66929242]
[1756764185759,0.03,195.15,195.1,20.32929242]
[1756764186097,0.03,195.15,195.12,45.66929242]
[1756764186387,0.03,195.15,195.12,46.62]
[1756764186691,0.03,195.15,195.12,66.94929242]
[1756764186865,0.03,195.15,195.12,46.62]
[1756764187254,0.03,195.15,195.12,66.94929242]
[1756764187765,0.03,195.15,195.12,32.07369841]
[1756764187970,0.03,195.15,195.11,6.07369841]
[1756764188168,0.76,195.13,195.09,46.54]
[1756764188361,0.1,195.13,195.09,46.54]
[1756764188560,6.83369841,195.13,195.09,46.54]
[1756764189462,0.66,195.12,195.04,5.1269311]
[1756764189664,6.07369841,195.09,195.05,46.5]
[1756764189959,6.73369841,195.09,195.05,46.5]
[1756764190390,0.66,195.08,195.02,59.0]
[1756764190558,0.66,195.08,195.03,6.07369841]
[1756764190759,6.07369841,195.06,195.01,46.46]
[1756764191064,6.73369841,195.05,195.01,46.46]
[1756764191277,6.07369841,195.05,195.01,46.46]
[1756764191484,31.12605215,195.09,195.01,46.46]
[1756764191485,6.73369841,195.04,195.01,46.46]
[1756764191655,6.07369841,195.04,195.01,46.46]
[1756764192501,18.88684378,195.12,195.01,46.46]
[1756764192502,0.1,195.13,195.04,26.0]
[1756764192692,0.1,195.13,195.06,6.07369841]
[1756764192868,6.07369841,195.12,195.06,6.07369841]
[1756764193190,0.1,195.13,195.08,6.07369841]
[1756764193482,0.1,195.13,195.09,46.66]
[1756764193900,6.07369841,195.11,195.09,46.64]
[1756764194092,6.07369841,195.11,195.06,46.64]
[1756764194285,6.07369841,195.12,195.07,0.66]
[1756764194798,6.17369841,195.13,195.07,0.66]
[1756764195299,6.17369841,195.13,195.08,6.07369841]
[1756764195300,0.1,195.13,195.08,6.07369841]
[1756764195503,0.1,195.13,195.09,6.73369841]
[1756764196003,6.83369841,195.13,195.07,6.07369841]
[1756764196575,0.1,195.13,195.08,5.12610211]
[1756764196773,0.1,195.13,195.09,6.07369841]
[1756764196974,6.07369841,195.1,195.02,13.59559401]
[1756764197269,6.07369841,195.06,195.01,46.42]
[1756764197474,6.07369841,195.03,195.01,46.42]
[1756764197702,6.07369841,195.03,194.99,5.12843395]
[1756764198201,6.07369841,195.03,194.98,47.06]
[1756764198589,0.66,195.05,194.98,47.06]
[1756764198787,6.07369841,194.99,194.92,5.13030987]
[1756764199104,6.07369841,194.98,194.92,57.58400828]
[1756764199410,6.07369841,194.94,194.88,0.12]
[1756764199578,6.07369841,194.98,194.91,6.07369841]
[1756764199784,6.07369841,194.98,194.91,0.66]
[1756764200501,9.04470504,195.02,194.95,13.59559401]
[1756764200708,9.04470504,195.02,194.96,5.12925728]
[1756764200920,0.66,195.04,194.97,9.04470504]
[1756764201096,9.04470504,195.03,194.97,9.04470504]
[1756764201292,9.04470504,195.05,194.99,9.04470504]
[1756764201708,9.04470504,195.04,194.98,9.04470504]
[1756764201885,9.04470504,195.02,194.96,14.17396232]
[1756764202219,0.66,195.04,194.97,9.04470504]
[1756764202422,35.04470504,195.07,195.01,0.12]
[1756764202593,9.04470504,195.06,195.01,0.12]
[1756764203088,0.66,195.08,195.02,9.70470504]
[1756764203409,9.04470504,195.09,195.03,9.04470504]
[1756764203707,9.04470504,195.08,195.02,9.04470504]
[1756764204107,0.03,195.1,195.05,9.04470504]
[1756764204320,0.03,195.1,195.06,9.70470504]
[1756764204696,9.04470504,195.08,195.02,0.66]
[1756764204896,9.04470504,195.07,195.02,5.78760861]
[1756764205418,9.70470504,195.09,195.03,9.04470504]
[1756764205625,9.04470504,195.09,195.03,9.70470504]
[1756764205832,0.03,195.1,195.03,9.70470504]
[1756764206111,9.04470504,195.09,195.03,9.70470504]
[1756764206314,9.04470504,195.08,195.03,0.66]
[1756764206519,9.04470504,195.09,195.04,0.66]
[1756764206701,9.04470504,195.09,195.03,9.04470504]
[1756764206890,9.04470504,195.07,195.01,0.12]
[1756764207085,9.04470504,195.07,195.01,9.16470504]
[1756764207287,0.03,195.1,195.03,9.04470504]
[1756764207546,0.03,195.1,195.05,9.04470504]
[1756764207723,0.03,195.1,195.06,0.66]
[1756764208093,0.03,195.1,195.07,9.70470504]
[1756764208296,0.03,195.1,195.09,9.04470504]
[1756764208512,0.03,195.1,195.09,22.64029905]
[1756764208712,0.03,195.1,195.09,23.30029905]
[1756764208917,0.03,195.1,195.09,28.4261384]
[1756764209508,0.03,195.1,195.09,19.38143336]
[1756764209708,0.03,195.1,195.09,0.66]
[1756764210023,0.03,195.1,195.09,9.70470504]
[1756764210327,0.03,195.1,195.09,0.66]
[1756764210627,0.03,195.1,195.07,77.14636489]
[1756764210804,0.03,195.1,195.09,0.66]
[1756764211120,0.03,195.1,195.09,28.4261384]
[1756764212307,0.03,195.1,195.09,19.38143336]
[1756764212634,0.03,195.1,195.09,28.4261384]
[1756764214933,0.03,195.1,195.09,45.96]
[1756764215137,0.03,195.1,195.09,51.08583935]
[1756764216126,0.03,195.1,195.09,45.96]
[1756764217321,9.76470504,195.1,195.03,45.84]
[1756764217529,9.04470504,195.07,195.03,45.84]
[1756764218112,9.04470504,195.06,195.03,45.84]
[1756764218417,9.04470504,195.05,195.03,45.84]
[1756764218619,9.04470504,195.06,195.03,45.84]
[1756764219511,26.03,195.1,195.01,0.12]
[1756764219512,9.04470504,195.04,195.01,0.12]
[1756764219831,9.04470504,195.02,195.01,0.12]
[1756764220063,6.76001896,195.02,195.01,0.12]
[1756764220536,0.69,195.06,195.01,0.12]
[1756764220937,6.07001896,195.06,195.01,5.90784873]
[1756764221636,0.03,195.1,195.05,6.07001896]
[1756764221809,0.03,195.1,195.07,6.07001896]
[1756764222013,0.03,195.1,195.06,6.73001896]
[1756764222226,0.03,195.1,195.09,11.19585831]
[1756764222809,0.03,195.1,195.09,11.85585831]
[1756764223013,0.03,195.1,195.09,57.59585831]
[1756764223611,0.03,195.1,195.09,71.70403625]
[1756764224014,0.03,195.1,195.09,71.19145232]
[1756764224826,0.03,195.1,195.09,124.12143336]
[1756764225027,0.03,195.1,195.09,130.19145232]
[1756764225237,0.03,195.1,195.09,110.52583935]
[1756764225430,0.03,195.1,195.09,116.59585831]
[1756764226250,0.03,195.1,195.09,130.19145232]
[1756764226749,1e-08,195.1,195.09,156.19145232]
[1756764227121,1e-08,195.1,195.09,149.28143336]
[1756764227323,1e-08,195.1,195.09,156.01145232]
[1756764227746,1e-08,195.1,195.09,5.12583935]
[1756764227927,1e-08,195.1,195.09,70.97145232]
[1756764228519,1e-08,195.1,195.09,57.37585831]
[1756764228724,1e-08,195.1,195.09,56.71585831]
[1756764228923,1e-08,195.1,195.09,57.37585831]
[1756764229152,1e-08,195.1,195.09,56.71585831]
[1756764229349,1e-08,195.1,195.09,45.52]
[1756764229846,6.76001897,195.1,195.02,0.66]
[1756764230155,6.07001896,195.08,195.03,51.47001896]
[1756764230351,6.07001896,195.08,195.04,5.1271534]
[1756764230352,0.69,195.08,195.04,5.1271534]
[1756764230528,6.76001896,195.08,195.04,5.1271534]
[1756764231033,6.07001896,195.05,195.03,45.4]
[1756764231441,6.07001896,195.04,195.03,45.4]
[1756764231761,6.76001896,195.05,195.03,45.4]
[1756764232167,0.69,195.04,195.01,0.12]
[1756764232340,6.07001896,195.02,195.01,0.12]
[1756764233260,6.07001896,195.05,195.01,0.12]
[1756764233555,6.07001896,195.05,195.01,5.24790257]
[1756764235064,6.76001896,195.05,195.01,5.24790257]
[1756764235266,6.07001896,195.04,195.01,0.12]
[1756764235463,6.76001896,195.04,195.01,0.12]
[1756764235636,0.69,195.04,195.01,0.12]
[1756764235964,6.07001896,195.03,195.01,0.12]
[1756764236550,6.76001896,195.03,195.01,0.12]
[1756764236754,6.76001896,195.02,195.01,0.12]
[1756764239038,11.88769817,195.02,195.01,0.12]
[1756764240648,6.76001896,195.02,195.01,0.12]
[1756764240856,20.35561297,195.02,195.01,0.12]
[1756764241049,20.35561297,195.02,194.99,0.12]
[1756764241050,44.72379913,195.0,194.99,0.12]
[1756764241250,56.86383705,195.0,194.97,0.12]
[1756764241555,6.07001896,194.98,194.97,0.12]
[1756764241959,6.76001896,194.98,194.97,0.12]
[1756764243070,11.88875011,194.98,194.97,0.12]
[1756764244348,5.12853604,194.99,194.97,0.12]
[1756764244572,32.07001896,194.98,194.97,0.12]
[1756764245095,26.0,194.98,194.97,0.12]
[1756764245252,32.07001896,194.98,194.97,0.12]
[1756764246265,32.07001896,194.98,194.88,0.12]
[1756764246266,20.0,194.94,194.88,0.12]
[1756764246481,25.73563193,194.89,194.88,0.12]
[1756764246661,6.07001896,194.87,194.86,0.12]
[1756764247165,0.6,194.87,194.86,0.12]
[1756764247368,32.67001896,194.87,194.86,0.12]
[1756764247687,26.6,194.87,194.86,0.12]
[1756764247988,32.67001896,194.87,194.86,0.12]
[1756764248571,37.80164517,194.87,194.86,0.12]
[1756764248981,32.67001896,194.87,194.86,0.12]
[1756764249165,77.47001896,194.87,194.86,0.12]
[1756764249485,26.0,194.9,194.86,0.12]
[1756764249695,6.07001896,194.87,194.86,0.12]
[1756764250074,6.67001896,194.87,194.86,0.12]
[1756764250781,56.56164517,194.87,194.86,0.12]
[1756764250975,50.49162621,194.87,194.86,0.12]
[1756764251375,56.56164517,194.87,194.86,0.12]
[1756764251575,25.64911548,194.94,194.86,0.12]
[1756764251576,133.8,194.92,194.86,0.12]
[1756764251795,6.07001896,194.87,194.86,0.12]
[1756764253284,32.07001896,194.87,194.86,0.12]
[1756764254202,23.9,194.87,194.86,5.97188956]
[1756764254400,0.72,194.98,194.86,5.97188956]
[1756764254569,9.31625265,195.04,194.89,26.0]
[1756764254570,6.07001896,194.97,194.89,26.0]
[1756764254895,0.72,194.99,194.89,32.07001896]
[1756764255099,6.07001896,194.95,194.9,5.13083632]
[1756764255988,6.07001896,194.94,194.9,5.13083632]
[1756764256581,6.07001896,194.92,194.86,0.12]
[1756764256895,6.07001896,194.92,194.86,6.19001896]
[1756764257094,6.07001896,194.92,194.87,5.13162621]
[1756764257798,6.07001896,194.9,194.86,64.25188178]
[1756764257987,0.72,194.91,194.86,5.25188178]
[1756764257988,6.07001896,194.89,194.86,5.25188178]
[1756764258391,6.07001896,194.9,194.86,5.25188178]
[1756764258900,6.07001896,194.87,194.86,0.12]
[1756764260103,6.07001896,194.88,194.86,0.12]
[1756764260800,32.79001896,194.87,194.86,0.12]
[1756764260973,6.07001896,194.86,194.84,0.12]
[1756764261168,6.79001896,194.86,194.84,0.12]
[1756764261373,6.79001896,194.85,194.84,0.12]
[1756764262416,32.79001896,194.85,194.84,0.12]
[1756764262594,46.38561297,194.85,194.84,0.12]
[1756764262979,26.0,194.85,194.84,0.12]
[1756764263175,0.72,194.96,194.84,0.25]
[1756764263524,6.07001896,194.88,194.84,0.12]
[1756764263820,26.0,194.93,194.85,6.07001896]
[1756764263821,6.07001896,194.91,194.85,6.07001896]
[1756764263974,6.07001896,194.9,194.84,6.19001896]
[1756764264174,6.07001896,194.89,194.84,0.12]
[1756764264582,6.07001896,194.9,194.84,11.32233385]
[1756764265197,5.13109959,194.89,194.84,6.19001896]
[1756764265409,0.72,194.88,194.84,0.12]
[1756764265888,6.79001896,194.9,194.84,6.19001896]
[1756764266093,6.07001896,194.9,194.84,11.32238771]
[1756764266293,11.20094718,194.9,194.84,11.32238771]
[1756764267191,6.07001896,194.91,194.85,6.07001896]
[1756764267400,6.07001896,194.92,194.86,11.20190852]
[1756764267715,6.07001896,194.9,194.85,6.07001896]
[1756764267897,6.79001896,194.9,194.85,6.07001896]
[1756764268215,0.72,194.89,194.85,6.07001896]
[1756764268382,0.72,194.89,194.84,11.32238978]
[1756764268583,6.79001896,194.89,194.84,5.25237846]
[1756764268894,6.07001896,194.9,194.84,0.12]
[1756764269092,6.79001896,194.9,194.84,6.19001896]
[1756764269290,26.0,194.91,194.85,6.07001896]
[1756764269492,26.0,194.91,194.86,6.07001896]
[1756764269702,26.72,194.91,194.86,6.07001896]
[1756764270311,140.59001896,194.94,194.88,6.07001896]
[1756764270605,6.79001896,194.93,194.87,6.07001896]
[1756764270782,6.07001896,194.92,194.86,6.07001896]
[1756764271185,6.79001896,194.91,194.84,5.25238027]
[1756764271405,11.92066002,194.91,194.85,6.07001896]
[1756764271714,11.92066002,194.91,194.85,11.20212671]
[1756764272484,6.07001896,194.88,194.84,0.12]
[1756764272919,6.79001896,194.87,194.84,0.12]
[1756764273236,6.07001896,194.89,194.84,0.12]
[1756764273396,6.79001896,194.9,194.84,11.32228612]
[1756764274192,6.07001896,194.87,194.84,0.12]
[1756764274710,6.79001896,194.89,194.84,0.12]
[1756764274907,6.79001896,194.88,194.84,0.12]
[1756764275297,6.78001896,194.87,194.84,0.12]
[1756764275506,5.84164308,194.87,194.84,0.12]
[1756764275832,0.71,194.86,194.84,0.12]
[1756764276514,6.07001896,194.88,194.84,0.12]
[1756764276720,0.71,194.89,194.84,5.25224203]
[1756764276892,6.07001896,194.9,194.84,11.32226099]
[1756764277231,26.0,194.91,194.85,6.07001896]
[1756764277391,6.07001896,194.92,194.86,11.2017166]
[1756764277733,6.07001896,194.92,194.86,5.13169764]
[1756764277933,6.07001896,194.91,194.86,5.13169764]
[1756764278139,0.71,194.9,194.85,11.20214394]
[1756764278297,0.71,194.89,194.85,11.20214394]
[1756764279126,0.71,194.89,194.85,5.13212498]
[1756764279603,6.07001896,194.89,194.84,0.12]
[1756764279793,0.71,194.88,194.84,0.12]
[1756764280003,0.71,194.87,194.84,0.12]
[1756764280529,0.71,194.86,194.84,0.12]
[1756764280990,0.71,194.85,194.84,0.12]
[1756764282505,6.07001896,194.87,194.84,0.12]
[1756764282796,6.78001896,194.87,194.84,0.12]
[1756764283026,0.71,194.86,194.84,0.12]
[1756764283326,5.13083632,194.9,194.84,0.12]
[1756764283491,6.78001896,194.89,194.84,0.12]
[1756764283693,11.91121572,194.89,194.84,0.12]
[1756764283893,11.91121572,194.89,194.84,11.32243037]
[1756764283894,0.71,194.89,194.84,11.32243037]
[1756764284122,6.78001896,194.89,194.84,5.25241141]
[1756764284324,0.71,194.88,194.84,5.25241141]